bitfinex-derivatives/quotes_ETHF0:USTF0_20250817
["timestamp","ask_amount","ask_price","bid_price","bid_amount"]
[1755428036368,3.2078,4556.7,4555.5,0.1981]
[1755428036566,0.366,4556.6,4555.6,0.2454]
[1755428036770,3.2078,4556.7,4555.7,0.584]
[1755428036970,1.039,4556.3,4556.2,0.1636]
[1755428037171,1.1988,4556.3,4556.2,0.5712]
[1755428037972,1.1988,4556.3,4556.1,0.2358]
[1755428037973,0.623,4557.7,4556.4,0.2454]
[1755428038176,0.2536,4556.8,4556.7,3.5336]
[1755428038671,1.1988,4556.8,4556.7,3.2078]
[1755428038876,1.4493,4556.8,4556.7,3.5336]
[1755428039067,1.4493,4556.8,4556.7,4.0148]
[1755428040374,0.8735,4557.7,4556.7,3.5336]
[1755428040573,1.4493,4556.8,4556.7,3.37]
[1755428040879,1.4493,4556.8,4556.7,0.1622]
[1755428041074,1.4493,4556.8,4556.2,0.4812]
[1755428041278,0.5758,4556.3,4556.2,0.807]
[1755428041572,3.2078,4557.1,4556.3,0.4812]
[1755428041775,0.6704,4556.4,4556.3,0.807]
[1755428042880,1.4493,4556.4,4556.3,0.807]
[1755428043177,1.4493,4556.4,4555.1,1.09714]
[1755428043178,0.1624,4555.7,4555.6,0.807]
[1755428043477,1.4493,4555.7,4555.6,0.807]
[1755428044074,1.4493,4555.7,4555.6,0.3258]
[1755428044475,1.4493,4555.7,4555.6,0.1622]
[1755428044773,0.8263,4555.7,4555.3,0.4812]
[1755428044979,1.1271,4555.4,4555.0,3.5336]
[1755428045175,1.1271,4555.4,4555.3,0.807]
[1755428045575,1.4493,4555.4,4555.3,0.807]
[1755428046776,0.8328,4555.4,4555.3,0.807]
[1755428046971,0.8328,4555.4,4555.0,3.2078]
[1755428046972,1.4493,4555.7,4555.6,0.3258]
[1755428047171,1.4493,4555.7,4555.6,0.807]
[1755428048281,1.57346054,4557.4,4557.3,0.1622]
[1755428048282,0.7828,4557.4,4557.3,0.1622]
[1755428048484,1.76251149,4557.4,4557.3,0.1622]
[1755428048979,1.76251149,4557.4,4557.0,0.2454]
[1755428048980,0.56371149,4557.4,4557.0,0.2454]
[1755428049282,1.1988,4557.5,4557.4,0.807]
[1755428049480,0.7794,4557.5,4557.4,0.807]
[1755428049673,0.623,4558.1,4557.5,0.4812]
[1755428049877,1.1988,4558.1,4558.0,0.1622]
[1755428050074,1.75573839,4558.1,4557.5,0.4812]
[1755428050279,1.4493,4557.6,4557.5,0.807]
[1755428050479,3.3078,4558.2,4557.6,0.4812]
[1755428050777,2.01255798,4558.1,4558.0,0.1622]
[1755428050976,1.4493,4558.0,4557.9,0.3258]
[1755428051283,1.4493,4558.0,4557.9,0.807]
[1755428051779,0.5758,4557.7,4557.6,0.1622]
[1755428051983,1.4493,4557.7,4557.6,0.1622]
[1755428052183,0.1,4558.2,4558.1,0.8289]
[1755428052480,0.8328,4559.6,4559.5,0.7214]
[1755428052884,0.2536,4559.6,4559.5,0.7214]
[1755428053285,0.2536,4559.6,4558.9,3.64629]
[1755428053286,0.8735,4559.5,4558.6,0.3956]
[1755428053475,0.8735,4559.5,4558.7,0.3956]
[1755428054278,0.6165,4559.5,4558.7,0.3956]
[1755428054485,1.4493,4558.8,4558.7,0.1622]
[1755428054888,1.4493,4558.8,4558.7,0.7214]
[1755428055083,0.5075,4558.8,4558.7,0.7214]
[1755428055288,1.1923,4559.4,4559.3,0.7214]
[1755428055584,1.75275602,4559.4,4559.3,0.7214]
[1755428055790,2.00975602,4559.4,4559.3,0.7214]
[1755428057183,1.39325602,4559.4,4559.3,0.7214]
[1755428057481,1.21285602,4559.4,4559.3,0.7214]
[1755428057683,2.01305602,4559.4,4559.3,0.7214]
[1755428058795,0.5819,4559.0,4558.9,3.9415]
[1755428058993,1.4518,4559.0,4558.9,3.9415]
[1755428059385,3.2078,4560.0,4558.9,3.9415]
[1755428059694,0.2456,4559.1,4559.0,0.7337]
[1755428059990,2.01246113,4559.1,4559.0,0.7337]
[1755428060182,0.56066113,4559.1,4559.0,0.7337]
[1755428060384,0.5819,4559.8,4559.7,0.1621]
[1755428060589,1.14271669,4559.8,4559.7,0.1621]
[1755428060789,2.01261669,4559.8,4559.7,0.1621]
[1755428061291,1.4518,4559.3,4559.2,0.7337]
[1755428061488,2.01261669,4559.3,4559.2,0.3293]
[1755428062492,2.01303422,4559.3,4559.2,0.1621]
[1755428063088,0.8428,4559.0,4558.9,3.2078]
[1755428063288,0.5819,4558.5,4558.4,3.2078]
[1755428063494,2.01303422,4558.5,4558.4,3.2078]
[1755428064293,2.01303422,4558.5,4557.7,0.3782]
[1755428064488,0.5819,4557.8,4557.7,0.9546]
[1755428064694,2.01303422,4557.8,4557.7,0.9546]
[1755428064891,2.01303422,4557.8,4557.7,1.359]
[1755428065092,1.63983422,4557.8,4557.7,1.359]
[1755428065294,1.38213422,4557.8,4557.7,1.359]
[1755428065488,1.38213422,4557.8,4557.7,1.1998]
[1755428065689,2.01303422,4557.8,4557.7,1.1998]
[1755428066091,2.01303422,4557.8,4557.7,1.359]
[1755428066793,0.56123422,4557.8,4557.7,1.359]
[1755428066988,0.56190308,4558.3,4557.8,0.6234]
[1755428067194,0.56190308,4558.2,4557.9,0.1592]
[1755428067394,0.56190308,4558.1,4558.0,0.5764]
[1755428067596,0.17320308,4558.8,4558.0,4.5668]
[1755428067797,3.6924,4559.0,4558.9,0.3293]
[1755428067994,4.6596,4559.0,4558.9,0.7337]
[1755428069001,4.6596,4559.0,4558.9,0.1621]
[1755428069294,0.239,4558.9,4558.1,0.4044]
[1755428069502,0.4967,4558.9,4558.1,0.4044]
[1755428069704,0.8699,4558.9,4558.1,0.4044]
[1755428069899,1.4518,4558.1,4558.0,3.5371]
[1755428070098,1.4518,4558.1,4558.0,3.9415]
[1755428070296,0.6309,4558.5,4558.0,3.5371]
[1755428070496,1.2128,4558.5,4558.4,0.3293]
[1755428070799,1.2128,4558.5,4558.4,0.72958377]
[1755428071103,1.4518,4558.5,4558.4,0.32518377]
[1755428071798,3.2078,4559.0,4558.4,0.72548377]
[1755428071995,3.2078,4559.0,4558.0,3.2078]
[1755428071996,3.7897,4559.0,4558.9,0.3293]
[1755428072200,4.6596,4559.0,4558.9,0.3293]
[1755428072396,4.6596,4559.0,4558.9,0.1621]
[1755428073603,4.6596,4559.0,4558.5,0.4003]
[1755428073899,1.4518,4558.6,4558.5,0.7296]
[1755428074701,1.4518,4558.6,4558.0,3.2078]
[1755428074702,3.4534,4559.0,4558.9,0.1621]
[1755428074909,4.6596,4559.0,4558.9,0.7296]
[1755428075103,4.0287,4559.0,4558.9,0.7296]
[1755428075307,3.2078,4559.0,4558.9,0.7296]
[1755428075704,3.6924,4559.0,4558.9,0.7296]
[1755428075898,4.6596,4559.0,4558.9,0.7296]
[1755428077805,4.6596,4559.0,4558.2,0.43855]
[1755428077806,0.4967,4558.9,4558.0,3.2078]
[1755428078009,3.3748,4559.0,4558.0,3.9374]
[1755428078010,0.2456,4558.1,4558.0,3.9374]
[1755428078210,0.239,4558.4,4558.0,3.9374]
[1755428078406,1.2128,4558.4,4558.3,0.3293]
[1755428078608,0.2456,4558.4,4558.3,0.7296]
[1755428078809,0.5033,4558.7,4558.3,0.7296]
[1755428079111,1.4518,4558.7,4558.6,0.3293]
[1755428079308,3.6924,4559.0,4558.7,0.1551]
[1755428079612,4.6596,4559.0,4558.9,0.7296]
[1755428079807,5.22318272,4559.0,4558.9,0.7296]
[1755428081914,3.77138272,4559.0,4558.9,0.7296]
[1755428082120,5.22318272,4559.0,4558.9,0.7296]
[1755428082515,5.22318272,4559.0,4558.9,0.3293]
[1755428083117,5.22318272,4559.0,4558.9,0.1621]
[1755428083315,4.01698272,4559.0,4558.9,0.1621]
[1755428083618,5.22318272,4559.0,4558.9,0.7296]
[1755428083815,4.18398272,4559.0,4558.9,0.7296]
[1755428084122,3.77138272,4559.0,4558.9,0.7296]
[1755428084320,5.22318272,4559.0,4558.9,0.7296]
[1755428085023,1.4518,4558.9,4558.8,0.1621]
[1755428085215,0.56358272,4558.9,4558.1,0.43857]
[1755428085417,0.239,4558.9,4558.8,0.3293]
[1755428085622,0.56344722,4558.9,4558.8,0.3293]
[1755428086122,0.56344722,4558.9,4558.8,0.7296]
[1755428087417,0.4967,4559.6,4558.8,0.3293]
[1755428087620,1.13897789,4559.5,4559.4,0.3344]
[1755428087821,1.13897789,4559.5,4559.4,0.7397]
[1755428087822,1.38237789,4559.5,4559.4,0.7397]
[1755428088014,0.56337789,4559.5,4559.4,0.7397]
[1755428088621,3.2078,4560.8,4559.4,0.77283]
[1755428088819,1.97954128,4560.7,4560.6,0.3335]
[1755428089017,1.97954128,4560.7,4560.6,0.1613]
[1755428089219,1.4164,4560.6,4560.5,0.1613]
[1755428089518,0.8391,4560.5,4559.9,0.4053]
[1755428089726,0.489,4560.0,4559.9,0.7397]
[1755428089920,0.819,4560.0,4559.9,0.7397]
[1755428090317,1.0542,4560.0,4559.9,0.7397]
[1755428090918,1.4164,4560.0,4559.9,0.7397]
[1755428092226,1.4164,4560.3,4560.2,0.7397]
[1755428092820,3.2078,4561.6,4560.1,0.2498]
[1755428093015,0.5773,4561.0,4560.4,3.2078]
[1755428093325,1.4164,4560.9,4560.8,0.1613]
[1755428093518,0.2417,4561.6,4560.5,2.80123448]
[1755428093724,1.4164,4561.2,4561.1,0.1613]
[1755428093917,1.4164,4561.2,4560.5,6.00903448]
[1755428093918,0.2473,4561.2,4560.5,3.2078]
[1755428094119,20.604,4562.3,4560.5,3.3691]
[1755428094120,1.4164,4560.6,4560.5,3.3691]
[1755428094521,0.7717,4560.1,4560.0,3.2078]
[1755428094723,1.4164,4560.1,4560.0,3.2078]
[1755428094922,0.0219,4560.9,4560.0,2.1686]
[1755428095121,0.4666,4560.0,4558.8,0.2582]
[1755428095317,0.881,4559.3,4559.2,0.1613]
[1755428095517,3.2078,4559.4,4558.6,0.6042]
[1755428095823,0.5188,4559.8,4559.7,0.5861]
[1755428096023,0.881,4559.8,4559.7,1.0941]
[1755428096321,3.2078,4560.6,4559.8,0.2498]
[1755428096322,3.57,4560.6,4559.8,0.2498]
[1755428096523,0.56203303,4560.5,4559.8,0.6126]
[1755428096729,0.2473,4560.0,4559.4,3.2078]
[1755428096924,20.858,4560.4,4559.4,3.5622]
[1755428097117,0.1044,4560.2,4559.5,0.3544]
[1755428097316,0.3622,4560.1,4559.6,0.508]
[1755428097521,0.3622,4560.1,4559.5,0.8624]
[1755428097721,0.7766,4560.1,4560.0,0.3335]
[1755428098022,0.881,4560.1,4560.0,1.4485]
[1755428098423,0.2473,4560.2,4560.1,0.4248]
[1755428098721,1.17156771,4560.2,4560.1,0.8443]
[1755428098928,0.7766,4560.2,4560.1,0.8443]
[1755428099127,0.7766,4560.2,4560.1,1.4485]
[1755428099322,0.4666,4560.1,4559.5,0.2582]
[1755428099529,0.881,4559.7,4559.6,0.2498]
[1755428099925,0.881,4559.7,4559.6,0.6693]
[1755428100425,0.1671,4560.6,4560.5,0.508]
[1755428100625,0.881,4560.6,4560.5,0.8415]
[1755428100922,0.7766,4560.6,4560.5,1.4485]
[1755428101127,0.6095,4560.6,4560.5,1.4485]
[1755428101334,0.881,4560.6,4560.5,1.0941]
[1755428101522,0.3622,4561.4,4560.5,0.5861]
[1755428101724,0.881,4561.4,4561.3,0.1613]
[1755428101919,1.44295562,4561.4,4561.3,0.2498]
[1755428102227,22.37095562,4561.4,4561.3,0.2498]
[1755428102733,1.44295562,4561.4,4561.3,1.4485]
[1755428103430,1.44273368,4561.4,4561.3,1.4485]
[1755428103821,0.56173368,4561.4,4561.3,1.4485]
[1755428104135,0.2473,4561.5,4561.4,0.5157]
[1755428104431,0.2473,4561.0,4560.9,3.7939]
[1755428104628,0.6095,4561.0,4560.9,4.1483]
[1755428104824,0.6095,4561.0,4560.9,4.6563]
[1755428105533,0.7766,4561.0,4560.9,4.6563]
[1755428105732,0.2473,4561.1,4561.0,0.5833]
[1755428106033,0.6095,4561.1,4561.0,1.4485]
[1755428106233,0.7766,4561.1,4561.0,1.4485]
[1755428107732,0.6095,4561.1,4561.0,1.4485]
[1755428107931,3.2078,4561.9,4561.0,0.5861]
[1755428108123,8.769,4565.7,4560.9,3.2078]
[1755428108124,0.3622,4563.0,4562.1,1.1987]
[1755428108323,0.3622,4563.0,4560.9,3.2078]
[1755428108324,3.2078,4564.3,4562.9,0.508]
[1755428108629,3.2078,4564.3,4563.1,0.2498]
[1755428108832,0.1,4565.2,4565.1,0.45979]
[1755428109025,3.2078,4567.1,4566.1,0.6042]
[1755428109226,3.2078,4567.1,4566.0,0.0219]
[1755428109227,3.2078,4567.1,4566.7,0.508]
[1755428109423,3.2078,4567.7,4567.2,0.3544]
[1755428109731,3.2078,4568.2,4567.5,0.2498]
[1755428109919,3.2078,4568.2,4567.7,0.2498]
[1755428110121,2.948,4568.2,4568.1,0.8624]
[1755428110325,1.57346054,4571.1,4568.7,0.508]
[1755428110524,0.2352,4571.0,4569.7,0.508]
[1755428110729,0.2352,4571.1,4570.1,3.2078]
[1755428111027,0.2417,4570.1,4569.0,0.2582]
[1755428111224,3.2078,4570.8,4569.7,3.2078]
[1755428111529,3.2078,4570.7,4569.8,0.508]
[1755428111729,3.2078,4570.7,4569.7,3.2078]
[1755428111730,3.2078,4571.3,4570.5,0.2498]
[1755428111929,0.1,4572.2,4568.8,0.508]
[1755428111930,0.2635,4570.6,4568.8,0.508]
[1755428112230,0.3622,4569.3,4567.9,0.508]
[1755428112425,3.2078,4569.5,4569.0,0.508]
[1755428112626,3.2078,4570.8,4569.5,0.0218]
[1755428112828,3.443,4572.4,4570.9,0.4399]
[1755428113031,3.443,4572.4,4569.6,0.9]
[1755428113032,3.2078,4572.4,4571.7,0.2582]
[1755428113333,1.9707595,4575.5,4571.7,0.2582]
[1755428113334,3.2078,4575.2,4572.2,0.0218]
[1755428113526,3.2078,4575.2,4571.8,53.795]
[1755428113527,3.2078,4576.3,4574.8,3.2078]
[1755428113722,3.2078,4576.7,4574.9,4.1078]
[1755428113927,3.2078,4577.5,4575.0,0.0218]
[1755428114124,3.2078,4578.1,4577.1,3.2078]
[1755428114327,3.2078,4577.2,4575.4,3.2078]
[1755428114522,3.2078,4577.0,4575.4,3.2078]
[1755428114727,0.2417,4577.1,4575.5,2.90238407]
[1755428114728,3.2078,4576.8,4575.5,2.90238407]
[1755428114931,3.2078,4577.5,4576.6,3.2078]
[1755428115130,0.2417,4576.6,4575.4,6.11018407]
[1755428115330,0.2352,4575.5,4574.1,3.2078]
[1755428115523,0.2352,4575.5,4570.8,0.30641904]
[1755428115524,0.0218,4574.1,4572.9,3.2078]
[1755428115727,3.2078,4573.7,4572.4,0.1755609]
[1755428115924,3.2078,4572.7,4571.3,3.2078]
[1755428116229,0.2352,4573.8,4572.5,3.2078]
[1755428116426,0.3622,4573.3,4572.5,3.2078]
[1755428116627,0.2417,4573.1,4571.6,3.2078]
[1755428116824,0.2352,4572.8,4571.8,3.2296]
[1755428117028,0.2352,4573.8,4572.3,3.2296]
[1755428117226,0.2352,4574.6,4573.7,3.2078]
[1755428117429,0.2352,4574.6,4571.6,31.53]
[1755428117430,3.2078,4575.0,4571.6,31.53]
[1755428117634,0.5049,4573.8,4572.9,3.2078]
[1755428117836,0.8704,4573.3,4571.8,3.2078]
[1755428118032,0.6228,4572.2,4571.3,3.2078]
[1755428118230,31.517,4574.0,4571.3,3.2078]
[1755428118231,3.4651,4573.8,4571.4,0.0218]
[1755428118434,0.2573,4573.8,4573.4,3.2078]
[1755428118628,0.5049,4574.6,4573.4,3.2078]
[1755428118832,0.2476,4574.6,4573.4,3.2078]
[1755428119131,0.2573,4574.4,4573.8,3.2078]
[1755428119333,0.2573,4574.2,4572.9,3.2078]
[1755428119642,0.0218,4574.9,4572.1,31.517]
[1755428119643,3.2078,4573.0,4572.1,3.2078]
[1755428119839,0.5049,4572.8,4572.1,3.2078]
[1755428120136,0.5049,4572.8,4571.1,0.0984435]
[1755428120137,0.8704,4573.0,4571.3,3.2078]
[1755428120331,0.8704,4573.0,4572.2,3.2078]
[1755428120332,0.2573,4572.9,4572.2,3.2078]
[1755428120532,0.2573,4573.7,4572.7,3.2078]
[1755428120734,3.2078,4574.6,4572.7,3.2078]
[1755428120939,0.8704,4573.7,4572.7,3.2078]
[1755428121138,0.2573,4573.6,4573.0,3.2078]
[1755428121439,0.5049,4573.6,4573.2,3.2078]
[1755428121736,0.5049,4573.6,4571.1,24.6804435]
[1755428121737,0.2476,4574.1,4573.1,3.2078]
[1755428121934,0.2573,4574.0,4572.3,3.2078]
[1755428122134,3.5733,4574.2,4573.3,3.2078]
[1755428122135,0.2573,4573.8,4573.3,3.2078]
[1755428122338,0.2573,4573.8,4571.2,2.84306818]
[1755428122339,0.0218,4573.9,4572.3,3.2078]
[1755428122636,3.2078,4572.7,4571.4,3.2078]
[1755428122835,0.8922,4572.9,4571.4,3.2078]
[1755428123136,3.2078,4572.2,4570.5,3.2078]
[1755428123340,3.2296,4572.2,4570.5,3.2078]
[1755428123539,0.2476,4571.6,4570.5,3.2078]
[1755428123740,0.6131,4571.5,4570.5,3.2078]
[1755428124040,3.2078,4571.2,4570.0,3.2078]
[1755428124338,0.2573,4571.2,4571.1,3.3033]
[1755428124540,0.5049,4571.8,4571.1,3.3033]
[1755428124736,0.2476,4571.7,4570.4,0.0955]
[1755428124938,0.5049,4571.5,4570.8,3.2078]
[1755428125136,0.5049,4571.5,4570.4,0.0955]
[1755428125137,0.2573,4571.4,4570.9,3.2078]
[1755428125337,0.3655,4572.0,4570.4,0.0955]
[1755428125639,0.8704,4572.0,4570.7,3.2078]
[1755428125844,0.5049,4571.9,4570.7,3.2078]
[1755428126034,3.2078,4571.6,4569.9,3.2078]
[1755428126235,3.2296,4571.6,4569.9,3.2078]
[1755428126544,0.8704,4571.0,4569.9,3.2078]
[1755428126839,0.6131,4570.6,4569.9,3.2078]
[1755428127042,0.2573,4570.5,4569.9,3.2078]
[1755428127342,3.2078,4571.1,4569.9,3.2078]
[1755428127642,0.8704,4571.0,4569.9,3.2078]
[1755428128042,3.2078,4571.1,4569.9,3.2078]
[1755428128242,0.2573,4570.8,4569.9,3.2078]
[1755428128441,3.2078,4571.1,4569.9,3.2078]
[1755428128639,0.8704,4570.7,4569.8,3.2078]
[1755428128844,0.8704,4570.7,4570.4,3.2078]
[1755428129035,0.8704,4570.7,4569.9,3.64522]
[1755428129240,0.5049,4571.3,4570.5,3.3033]
[1755428129544,0.8704,4572.1,4570.5,3.3033]
[1755428129740,3.2078,4572.4,4570.5,3.3033]
[1755428129947,3.2078,4572.4,4571.1,3.2078]
[1755428129948,0.2573,4571.9,4571.1,3.2078]
[1755428130158,0.2573,4571.9,4571.1,3.64511]
[1755428130344,0.2573,4571.9,4571.2,0.4591]
[1755428130538,0.2476,4571.8,4570.7,0.43735]
[1755428130738,0.3655,4571.7,4570.1,3.3033]
[1755428131042,0.8704,4571.8,4570.6,0.43736]
[1755428131247,0.2573,4571.7,4570.7,0.0955]
[1755428131446,0.2573,4571.7,4571.0,3.2078]
[1755428132248,3.2078,4571.9,4570.4,3.3033]
[1755428132442,3.2078,4571.9,4570.1,0.0218]
[1755428132443,0.8704,4571.8,4570.6,3.2078]
[1755428132640,0.8704,4571.7,4570.6,3.2078]
[1755428133147,3.2078,4573.5,4572.1,0.0218]
[1755428133346,0.0045,4572.2,4572.1,3.3033]
[1755428133743,0.0045,4572.2,4572.1,3.3251]
[1755428133953,0.0045,4572.2,4572.1,3.3033]
[1755428134351,0.2618,4572.2,4572.1,3.2078]
[1755428134551,0.0045,4572.2,4572.1,3.2078]
[1755428134854,0.5094,4572.2,4572.1,3.2078]
[1755428135253,0.0045,4572.2,4572.1,3.2078]
[1755428135557,0.0045,4572.2,4572.1,6.2296]
[1755428136149,0.0045,4572.2,4572.1,6.2078]
[1755428136342,0.0045,4572.2,4572.1,3.2078]
[1755428136743,0.2573,4573.9,4573.6,0.43707]
[1755428136952,0.2573,4575.0,4574.0,0.0218]
[1755428137149,0.2573,4575.5,4574.9,3.2078]
[1755428137348,0.2476,4576.0,4574.9,3.2078]
[1755428137652,0.2573,4575.9,4575.6,3.2078]
[1755428137952,31.501,4577.7,4574.5,0.43699]
[1755428137953,0.5049,4575.7,4574.5,0.43699]
[1755428138153,0.55242444,4575.6,4574.7,0.43697]
[1755428138352,0.55242444,4575.6,4574.5,0.43699]
[1755428138559,0.55242444,4575.6,4575.5,3.2078]
[1755428138754,0.55424242,4575.6,4575.5,3.2078]
[1755428139053,0.2573,4576.6,4576.4,0.43681]
[1755428139253,0.55416448,4576.5,4576.3,3.64462]
[1755428139452,0.55416448,4576.4,4576.3,3.2078]
[1755428139656,0.55416448,4576.5,4576.3,3.2078]
[1755428139851,0.55416448,4576.4,4576.3,3.2078]
[1755428140151,0.55416448,4576.5,4575.6,0.45869]
[1755428140350,0.2573,4577.2,4576.2,0.43682]
[1755428140548,0.55428484,4577.1,4576.2,0.43682]
[1755428140754,0.55428484,4577.0,4576.2,0.43682]
[1755428141054,0.2573,4576.8,4575.9,3.2078]
[1755428141252,0.55428484,4576.7,4575.9,3.2078]
[1755428141454,0.55428484,4576.7,4576.1,0.43683]
[1755428141755,0.2573,4576.6,4575.9,3.64465]
[1755428141961,0.55428484,4576.5,4575.9,3.64465]
[1755428142251,0.55428484,4576.5,4575.0,1.09235]
[1755428142252,0.5049,4576.4,4576.0,3.2078]
[1755428142452,0.5049,4576.4,4574.5,24.786]
[1755428142453,0.8704,4576.2,4575.3,3.64471]
[1755428142651,0.2573,4576.0,4575.9,3.2078]
[1755428142853,1.42468484,4576.0,4575.4,4.8078]
[1755428143051,0.55428484,4575.9,4575.4,5.2447]
[1755428143354,0.2573,4575.8,4575.4,3.2078]
[1755428143547,0.2573,4575.5,4575.4,3.2078]
[1755428143752,0.5049,4575.5,4575.4,3.2078]
[1755428143952,1.42496664,4575.5,4574.7,1.6]
[1755428144157,0.55456664,4575.4,4574.9,3.2078]
[1755428144353,0.2573,4575.2,4574.9,3.2078]
[1755428144554,0.2573,4575.1,4574.4,36.3088]
[1755428144757,0.2573,4575.1,4574.9,3.2078]
[1755428144958,0.8704,4575.0,4574.9,3.2078]
[1755428145158,1.42530327,4575.0,4574.9,3.2078]
[1755428145460,1.05974054,4575.0,4574.9,3.2078]
[1755428145652,0.6228,4575.6,4574.9,3.2078]
[1755428145955,0.55484048,4575.5,4574.9,3.2078]
[1755428146152,3.2078,4576.4,4574.9,3.2078]
[1755428146153,0.2573,4575.2,4574.9,3.2078]
[1755428146356,0.3655,4575.4,4574.9,3.2078]
[1755428146654,0.2573,4575.0,4574.9,3.2078]
[1755428146859,0.2573,4575.7,4574.9,3.2078]
[1755428147154,0.2573,4575.7,4573.6,1.0927]
[1755428147155,0.5049,4575.1,4573.6,0.43708]
[1755428147355,0.55467358,4575.0,4573.7,0.3678]
[1755428147554,0.55467358,4575.0,4574.1,3.2078]
[1755428148057,0.245,4574.9,4573.7,0.3678]
[1755428148258,0.55467358,4574.8,4573.7,0.80487]
[1755428148558,0.245,4574.4,4573.5,3.2078]
[1755428148854,3.2078,4574.7,4573.5,3.2078]
[1755428148855,0.2486,4574.2,4573.5,3.2078]
[1755428149053,0.001,4573.9,4573.5,3.2078]
[1755428149260,0.80327358,4573.8,4573.3,0.43711]
[1755428149559,0.245,4573.7,4573.5,0.3599]
[1755428149951,0.01315227,4573.8,4573.1,3.2078]
[1755428150152,0.245,4573.7,4573.1,3.2078]
[1755428150355,3.4528,4573.7,4573.0,0.3599]
[1755428150662,0.4936,4573.5,4572.4,3.8048]
[1755428150854,0.4936,4573.5,4572.5,1.6]
[1755428151349,0.4936,4573.5,4572.7,0.2371]
[1755428151553,0.55485499,4573.4,4572.7,0.2371]
[1755428151753,3.2078,4573.1,4572.4,3.2078]
[1755428151954,0.4946,4573.0,4572.4,3.2078]
[1755428152153,0.4946,4573.0,4572.1,0.2371]
[1755428152154,0.2496,4573.0,4572.1,0.2371]
[1755428152358,0.79995786,4572.9,4572.1,0.2371]
[1755428152558,0.4946,4572.7,4572.3,3.2078]
[1755428152764,0.2496,4572.7,4572.3,3.5677]
[1755428152960,0.245,4572.4,4572.3,0.3599]
[1755428153154,0.4936,4572.6,4571.8,3.64505]
[1755428153348,0.4936,4572.6,4572.0,0.43723]
[1755428153558,0.4936,4572.6,4571.8,3.2078]
[1755428154060,0.80009607,4572.5,4571.7,3.5677]
[1755428154262,0.2496,4572.3,4571.3,0.4373]
[1755428154457,0.80009607,4572.2,4571.4,0.0218]
[1755428154762,0.245,4572.2,4571.6,3.2078]
[1755428154960,0.2496,4572.9,4571.6,3.2078]
[1755428154961,0.245,4571.9,4571.7,0.597]
[1755428155151,0.4936,4571.9,4571.6,3.2078]
[1755428155352,0.4946,4572.8,4571.6,3.2078]
[1755428155556,0.245,4572.3,4571.6,3.2078]
[1755428155757,0.55537066,4572.2,4571.6,3.2078]
[1755428155962,0.245,4572.1,4571.6,3.2078]
[1755428156163,0.4936,4571.9,4571.1,0.0984435]
[1755428156360,0.55537066,4571.8,4571.1,0.0984435]
[1755428156565,1.04997066,4571.7,4571.1,0.0984435]
[1755428156767,0.4946,4571.5,4571.1,0.0984435]
[1755428157057,0.4946,4571.3,4571.1,0.0984435]
[1755428157258,0.245,4571.2,4571.1,0.0984435]
[1755428157464,0.245,4571.2,4571.1,0.6954435]
[1755428157857,3.4574,4571.9,4571.1,1.1327635]
[1755428158063,0.55597198,4571.8,4571.1,0.6954435]
[1755428158254,0.55597198,4571.7,4571.2,0.43731]
[1755428158458,0.55597198,4571.6,4571.1,0.5357535]
[1755428158664,0.55597198,4571.6,4571.5,0.597]
[1755428158867,0.80097198,4571.6,4571.5,0.597]
[1755428160163,0.80097198,4571.6,4571.1,0.0984435]
[1755428160360,0.4946,4571.3,4571.1,0.0984435]
[1755428160566,1.05057198,4571.2,4571.1,0.0984435]
[1755428160763,0.4936,4571.1,4569.9,3.2078]
[1755428160963,0.245,4570.7,4569.9,3.2078]
[1755428161167,0.4936,4569.9,4568.9,3.2078]
[1755428161367,0.245,4569.6,4568.9,3.2078]
[1755428161663,0.2486,4569.3,4568.3,3.2078]
[1755428161861,0.2486,4569.3,4568.6,0.43755]
[1755428161862,0.80097198,4569.2,4568.6,0.43755]
[1755428162065,0.55597198,4569.1,4568.6,0.43755]
[1755428162261,0.55597198,4569.1,4568.5,0.3599]
[1755428162456,1.57346054,4570.3,4568.6,1.0939]
[1755428162664,1.57346054,4570.3,4567.3,1.09421]
[1755428162665,0.8712,4570.3,4569.3,0.597]
[1755428162964,3.2078,4570.4,4567.2,31.66367126]
[1755428162965,0.245,4569.5,4568.7,3.2078]
[1755428163162,0.2486,4569.4,4568.7,3.2078]
[1755428163671,0.245,4569.3,4568.7,3.2078]
[1755428164465,0.4936,4569.0,4568.7,3.2078]
[1755428164663,0.8712,4568.9,4567.9,0.6928]
[1755428164865,0.8712,4568.9,4567.9,0.4557]
[1755428165162,0.245,4568.8,4567.9,0.4557]
[1755428165363,0.245,4568.8,4567.9,0.79752]
[1755428165562,0.2486,4568.7,4567.9,0.79752]
[1755428165760,0.2486,4568.7,4567.9,0.3599]
[1755428166070,0.2486,4568.7,4567.9,0.79752]
[1755428166273,0.2486,4568.7,4567.9,0.3599]
[1755428166573,0.245,4568.6,4567.9,0.3599]
[1755428166968,0.245,4568.3,4567.7,3.2078]
[1755428167173,0.8712,4568.1,4567.3,0.79758]
[1755428167373,0.8712,4568.1,4567.3,0.3599]
[1755428167763,0.8712,4568.4,4567.1,3.2078]
[1755428167963,0.8712,4567.9,4567.1,3.2078]
[1755428168168,3.2078,4567.2,4566.7,0.3599]
[1755428168373,0.4936,4566.8,4566.5,0.43776]
[1755428168572,0.4936,4567.4,4566.7,3.64554]
[1755428169364,3.2078,4568.7,4567.8,0.6928]
[1755428169569,3.2078,4568.7,4568.3,0.43758]